bitfinex/quotes_BTCUSD_20250623
["timestamp","ask_amount","ask_price","bid_price","bid_amount"]
[1750639411844,0.0103315,101400.0,101390.0,0.02210001]
[1750639412062,0.0103315,101400.0,101390.0,0.06211648]
[1750639412342,0.0091515,101400.0,101390.0,0.69312031]
[1750639412597,0.0041515,101400.0,101390.0,1.03409591]
[1750639412848,0.0041515,101400.0,101390.0,0.67129672]
[1750639413066,0.0041515,101400.0,101390.0,0.65675587]
[1750639413291,0.0041515,101400.0,101390.0,1.01955506]
[1750639413728,0.0041515,101400.0,101390.0,0.62631587]
[1750639413951,0.02785049,101410.0,101390.0,0.98911506]
[1750639414190,0.02798919,101410.0,101390.0,0.62531587]
[1750639414404,0.02798919,101410.0,101390.0,0.46071587]
[1750639414617,0.02680919,101410.0,101400.0,0.16564]
[1750639414825,0.02680919,101410.0,101400.0,0.26593939]
[1750639415050,0.02798919,101410.0,101400.0,0.26593939]
[1750639415685,0.02798919,101410.0,101400.0,0.16564]
[1750639417618,0.05147718,101410.0,101400.0,0.16564]
[1750639417881,0.05147718,101410.0,101400.0,0.16764]
[1750639418108,0.02798919,101410.0,101400.0,0.16764]
[1750639418793,0.02680919,101410.0,101400.0,0.69280389]
[1750639419019,0.02680919,101410.0,101400.0,0.57551522]
[1750639419247,0.02798919,101410.0,101400.0,0.34797603]
[1750639419472,0.02798919,101410.0,101400.0,0.1028647]
[1750639419687,0.02798919,101410.0,101400.0,0.2687047]
[1750639419918,0.02798919,101410.0,101400.0,0.18894001]
[1750639420385,0.02798919,101410.0,101400.0,0.63150389]
[1750639420604,0.02680919,101410.0,101400.0,0.63150389]
[1750639420824,0.02680919,101410.0,101400.0,0.02310001]
[1750639421056,0.02680919,101410.0,101400.0,0.04337614]
[1750639421274,0.02798919,101410.0,101400.0,0.02310001]
[1750639421491,0.02798919,101410.0,101400.0,0.18950001]
[1750639421928,0.02680919,101410.0,101400.0,0.18950001]
[1750639422137,0.02680919,101410.0,101400.0,0.18946001]
[1750639422348,0.02798919,101410.0,101400.0,0.18946001]
[1750639423217,0.02798919,101410.0,101400.0,0.5522592]
[1750639423473,0.02798919,101410.0,101400.0,0.5522192]
[1750639424520,0.02798919,101410.0,101400.0,0.63338753]
[1750639424806,0.03716173,101410.0,101400.0,0.63338753]
[1750639425076,0.05435393,101410.0,101400.0,0.63338753]
[1750639425330,0.03598173,101410.0,101400.0,0.73368692]
[1750639425601,0.03718173,101410.0,101400.0,0.18946001]
[1750639425838,0.03718173,101410.0,101400.0,0.5522592]
[1750639426093,0.02800919,101410.0,101400.0,0.5522592]
[1750639426354,0.03721104,101410.0,101400.0,0.5522592]
[1750639426849,0.03721104,101410.0,101400.0,0.60363105]
[1750639427113,0.03601104,101410.0,101400.0,0.60363105]
[1750639427332,0.03601104,101410.0,101400.0,0.24083186]
[1750639427616,0.03721104,101410.0,101400.0,0.60363105]
[1750639427901,0.03721104,101410.0,101400.0,0.5522592]
[1750639429122,0.03601104,101410.0,101400.0,0.5522592]
[1750639429563,0.03601104,101410.0,101400.0,0.65255859]
[1750639429772,0.03601104,101410.0,101400.0,0.68455859]
[1750639431056,0.04293427,101410.0,101400.0,0.68455859]
[1750639431270,0.04293427,101410.0,101400.0,0.76883742]
[1750639431891,0.04296346,101410.0,101400.0,0.76883742]
[1750639432356,0.04296346,101410.0,101400.0,0.40603823]
[1750639432571,0.04296346,101410.0,101400.0,0.76883742]
[1750639433771,0.04296326,101410.0,101400.0,0.80003742]
[1750639433979,0.03604023,101410.0,101400.0,0.80003742]
[1750639434201,0.04296407,101410.0,101400.0,0.76883742]
[1750639434450,0.04296407,101410.0,101400.0,0.02310001]
[1750639434451,0.1252279,101410.0,101400.0,0.02310001]
[1750639434693,0.12522904,101410.0,101400.0,0.02310001]
[1750639435632,0.12522904,101410.0,101400.0,0.002]
[1750639435848,0.51159131,101410.0,101400.0,0.002]
[1750639437256,0.0625,101400.0,101390.0,0.02110001]
[1750639437477,0.0358269,101400.0,101390.0,0.3838992]
[1750639437717,0.03583456,101400.0,101390.0,0.3838992]
[1750639438166,0.05942491,101400.0,101390.0,0.3838992]
[1750639438654,0.03583456,101400.0,101390.0,0.3848992]
[1750639439769,0.03583456,101400.0,101390.0,0.001]
[1750639440038,0.03583456,101400.0,101390.0,0.3848992]
[1750639440270,0.03585601,101400.0,101390.0,0.3848992]
[1750639440497,0.0173728,101400.0,101390.0,0.3848992]
[1750639441188,1.1353826,101430.0,101390.0,0.44002512]
[1750639441406,1.20701423,101430.0,101390.0,0.44016382]
[1750639441643,1.20701423,101430.0,101390.0,0.60656382]
[1750639442535,0.62945504,101430.0,101390.0,0.60656382]
[1750639442757,0.80628397,101430.0,101390.0,0.60556382]
[1750639443238,0.0012,101420.0,101410.0,0.02110001]
[1750639443465,0.01968069,101420.0,101410.0,0.02110001]
[1750639443705,0.04330333,101420.0,101410.0,0.02110001]
[1750639444393,0.10630333,101420.0,101410.0,0.02110001]
[1750639445743,0.08267807,101420.0,101410.0,0.02110001]
[1750639447090,0.0642,101420.0,101410.0,0.02110001]
[1750639448265,0.17845234,101430.0,101420.0,0.02110001]
[1750639448490,0.14878934,101430.0,101420.0,0.45766395]
[1750639448714,0.14878934,101430.0,101420.0,0.7450992]
[1750639448929,0.14878934,101430.0,101420.0,0.7462892]
[1750639449614,0.14998934,101430.0,101420.0,0.32440001]
[1750639449852,0.14998934,101430.0,101420.0,0.19218001]
[1750639450301,0.14998934,101430.0,101420.0,0.02610001]
[1750639450519,0.14998934,101430.0,101420.0,0.5549792]
[1750639450958,0.14998934,101430.0,101420.0,0.5549392]
[1750639451184,0.14998934,101430.0,101420.0,0.02610001]
[1750639451417,0.19509427,101430.0,101420.0,0.02610001]
[1750639451640,0.20998934,101430.0,101420.0,0.02610001]
[1750639452533,0.20998934,101430.0,101420.0,0.02110001]
[1750639452988,0.0334,101420.0,101410.0,0.02110001]
[1750639453214,0.0639,101420.0,101400.0,0.02110001]
[1750639453451,0.00118,101410.0,101400.0,0.02110001]
[1750639455023,0.08396893,101420.0,101400.0,0.02110001]
[1750639455024,0.14996934,101430.0,101400.0,0.3838992]
[1750639455282,0.00118,101420.0,101410.0,0.02110001]
[1750639455471,0.03148,101420.0,101410.0,0.02110001]
[1750639456152,0.0303,101420.0,101400.0,0.02110001]
[1750639456416,0.00118,101410.0,101400.0,0.02510001]
[1750639456854,0.00118,101410.0,101400.0,0.02110001]
[1750639459087,0.00118,101410.0,101400.0,0.02510001]
[1750639459536,0.00118,101410.0,101400.0,0.02110001]
[1750639459994,0.00118,101410.0,101400.0,0.02310001]
[1750639460937,0.0303,101420.0,101400.0,0.42386239]
[1750639461203,0.14878934,101430.0,101420.0,0.02110001]
[1750639461490,0.14878934,101430.0,101420.0,0.08656471]
[1750639461718,0.14878934,101430.0,101420.0,0.08290001]
[1750639462413,0.14878934,101430.0,101420.0,0.4456992]
[1750639462659,0.14878934,101430.0,101420.0,0.13052262]
[1750639462891,0.14878934,101430.0,101420.0,0.4456992]
[1750639463127,0.14878934,101430.0,101420.0,0.71743859]
[1750639463361,0.14878934,101430.0,101420.0,0.73197944]
[1750639463592,0.14878934,101430.0,101420.0,1.07197944]
[1750639463827,0.14878934,101430.0,101420.0,0.70918025]
[1750639464073,0.14878934,101430.0,101420.0,1.15778471]
[1750639464774,0.14878934,101430.0,101420.0,0.79498552]
[1750639465016,0.14878934,101430.0,101420.0,1.15578471]
[1750639465295,0.14878934,101430.0,101420.0,0.71118025]
[1750639465531,0.14878934,101430.0,101420.0,1.07397944]
[1750639465770,0.14878934,101430.0,101420.0,1.06997944]
[1750639466009,0.14878934,101430.0,101420.0,1.12697944]
[1750639466237,0.14878934,101430.0,101420.0,1.07697944]
[1750639466462,0.14878934,101430.0,101420.0,1.47557883]
[1750639466687,0.14878934,101430.0,101420.0,1.52557883]
[1750639466918,0.14878934,101430.0,101420.0,1.16277964]
[1750639467146,0.14878934,101430.0,101420.0,1.20703944]
[1750639467388,0.14878934,101430.0,101420.0,1.37627944]
[1750639467885,0.14878934,101430.0,101420.0,1.06335859]
[1750639468137,0.14878934,101430.0,101420.0,0.7926992]
[1750639468370,0.14878934,101430.0,101420.0,0.6218192]
[1750639468607,0.14878934,101430.0,101420.0,0.5910792]
[1750639468844,0.14878934,101430.0,101420.0,0.19718001]
[1750639469078,0.14878934,101430.0,101420.0,0.5599792]
[1750639469279,0.14878934,101430.0,101420.0,0.5600192]
[1750639469560,0.14878934,101430.0,101420.0,0.007]
[1750639469790,0.14996934,101430.0,101420.0,0.19026001]
[1750639470020,0.14996934,101430.0,101420.0,0.02110001]
[1750639470484,0.14996934,101430.0,101420.0,0.3838992]
[1750639470932,0.14878934,101430.0,101420.0,0.08433862]
[1750639471396,0.14878934,101430.0,101420.0,0.44713781]
[1750639471663,0.14878934,101430.0,101420.0,0.3888992]
[1750639471878,0.14996934,101430.0,101420.0,0.3888992]
[1750639473220,0.14996934,101430.0,101420.0,0.5579792]
[1750639473664,0.14996934,101430.0,101420.0,0.3888992]
[1750639473865,0.14996934,101430.0,101420.0,0.5579792]
[1750639474089,0.14996934,101430.0,101420.0,0.19518001]
[1750639475486,0.14996934,101430.0,101420.0,0.20687112]
[1750639475688,0.14878934,101430.0,101420.0,0.40059031]
[1750639475894,0.14878934,101430.0,101420.0,0.27027112]
[1750639476314,0.14878934,101430.0,101420.0,0.63307031]
[1750639477018,0.14878934,101430.0,101420.0,0.7333697]
[1750639477424,0.14878934,101430.0,101420.0,0.7334497]
[1750639477852,0.14878934,101430.0,101420.0,0.36945051]
[1750639478091,0.14878934,101430.0,101420.0,0.7334497]
[1750639478941,0.14878934,101430.0,101420.0,0.4510992]
[1750639479163,0.14878934,101430.0,101420.0,0.6202192]
[1750639479379,0.14878934,101430.0,101420.0,0.6214192]
[1750639480769,0.14878934,101430.0,101420.0,0.73625944]
[1750639481222,0.14878934,101430.0,101420.0,0.6215392]
[1750639481435,0.14878934,101430.0,101420.0,0.69979028]
[1750639484247,0.14878934,101430.0,101420.0,0.81463052]
[1750639484493,0.14878934,101430.0,101420.0,0.45159133]
[1750639484705,0.14878934,101430.0,101420.0,0.73613944]
[1750639485171,0.14878934,101430.0,101420.0,0.56713944]
[1750639485386,0.14878934,101430.0,101420.0,0.73617944]
[1750639486951,0.14878934,101430.0,101420.0,1.07617944]
[1750639487189,0.14878934,101430.0,101420.0,1.17647883]
[1750639487677,0.14878934,101430.0,101420.0,0.81367964]
[1750639487903,0.14878934,101430.0,101420.0,1.17647883]
[1750639492340,0.14878934,101430.0,101420.0,1.3917302]
[1750639492576,0.14878934,101430.0,101420.0,1.5209902]
[1750639492802,0.14878934,101430.0,101420.0,1.6898302]
[1750639493255,0.14878934,101430.0,101420.0,1.5209902]
[1750639493539,0.15001934,101430.0,101420.0,0.32440001]
[1750639493772,0.15001934,101430.0,101420.0,0.49320001]
[1750639494020,0.00447621,101470.0,101420.0,0.61342529]
[1750639494238,0.033,101440.0,101420.0,0.48392529]
[1750639494466,0.033,101440.0,101420.0,0.53525051]
[1750639494707,0.033,101440.0,101430.0,0.28902528]
[1750639495360,0.16443863,101460.0,101430.0,0.28902528]
[1750639495586,0.00923267,101460.0,101430.0,0.28902528]
[1750639495793,0.00923267,101460.0,101430.0,0.47884529]
[1750639496015,0.0001387,101460.0,101440.0,0.28902528]
[1750639496231,0.00123,101450.0,101440.0,0.02110001]
[1750639497359,0.00123,101450.0,101440.0,0.02210001]
[1750639497814,0.00123,101450.0,101440.0,0.02110001]
[1750639498029,0.00123,101450.0,101440.0,0.02310001]
[1750639498489,0.05513,101450.0,101440.0,0.02310001]
[1750639498955,0.41647686,101450.0,101440.0,0.002]
[1750639499391,0.4326381,101450.0,101440.0,0.002]
[1750639499871,6.27274181,101450.0,101440.0,0.002]
[1750639500083,0.0092,101410.0,101400.0,0.02110001]
[1750639500305,0.01043,101410.0,101400.0,0.02110001]
[1750639501000,0.00123,101410.0,101400.0,0.39253334]
[1750639501447,0.00123,101410.0,101400.0,0.03118648]
[1750639501642,0.00123,101410.0,101400.0,0.39253334]
[1750639502371,0.00123,101410.0,101400.0,0.02110001]
[1750639502921,0.00123,101410.0,101400.0,0.02310001]
[1750639503114,0.00123,101430.0,101420.0,0.02110001]
[1750639504289,0.00223,101430.0,101420.0,0.02110001]
[1750639504517,0.001,101430.0,101420.0,0.02110001]
[1750639505231,0.00223,101430.0,101420.0,0.02110001]
[1750639506153,0.001,101430.0,101420.0,0.02110001]
[1750639507364,0.001,101430.0,101420.0,0.55331171]
[1750639507620,0.001,101430.0,101420.0,0.87954687]
[1750639507861,0.001,101430.0,101420.0,0.51820001]
[1750639509760,0.00223,101430.0,101420.0,0.48776001]
[1750639510049,0.41537686,101430.0,101420.0,0.2983]
[1750639510291,0.46821686,101430.0,101420.0,0.2983]
[1750639510520,0.10687,101430.0,101420.0,0.2983]
[1750639512127,0.46821686,101430.0,101420.0,0.2983]
[1750639512356,0.41641686,101430.0,101400.0,0.02110001]
[1750639512585,0.0322,101420.0,101400.0,0.02110001]
[1750639512813,0.00123,101410.0,101400.0,0.02110001]
[1750639516084,0.00123,101410.0,101400.0,0.02310001]
[1750639517946,0.0012,101420.0,101400.0,0.02310001]
[1750639518904,0.0523,101430.0,101410.0,0.36134686]
[1750639519131,0.0012,101430.0,101410.0,0.0644]
[1750639519361,0.0012,101420.0,101410.0,0.02110001]
[1750639519587,0.0012,101420.0,101400.0,0.02210001]
[1750639519801,0.0012,101420.0,101400.0,0.19050001]
[1750639520018,0.0318,101420.0,101400.0,0.02110001]
[1750639520458,0.0012,101420.0,101400.0,0.39300638]
[1750639520679,0.0012,101420.0,101400.0,0.45824638]
[1750639521441,0.0012,101430.0,101410.0,0.37359122]
[1750639521669,0.0012,101430.0,101410.0,0.37483122]
[1750639521916,0.0012,101430.0,101420.0,0.28929121]
[1750639522824,0.0022,101430.0,101420.0,0.28929121]
[1750639523060,0.001,101430.0,101420.0,0.37369122]
[1750639523315,0.08564,101450.0,101420.0,0.37493122]
[1750639523528,0.08577868,101450.0,101420.0,0.37493122]
[1750639523716,0.37386989,101450.0,101420.0,0.37493122]
[1750639523968,0.0012,101440.0,101420.0,0.37493122]
[1750639524186,0.0012,101440.0,101420.0,0.46705481]
[1750639524404,0.32062989,101450.0,101420.0,0.46705481]
[1750639524628,0.29062989,101450.0,101420.0,0.46705481]
[1750639524845,0.34286989,101450.0,101420.0,0.46705481]
[1750639525096,0.37316989,101450.0,101420.0,0.1777636]
[1750639525347,0.0012,101440.0,101420.0,0.08564001]
[1750639525563,0.29049121,101440.0,101420.0,0.05380001]
[1750639526236,0.0012,101430.0,101420.0,0.02110001]
[1750639526450,0.0012,101430.0,101410.0,0.91991591]
[1750639526672,0.29049121,101430.0,101410.0,0.51864001]
[1750639526893,0.06317912,101430.0,101410.0,0.31940001]
[1750639527115,0.06437912,101430.0,101410.0,0.31940001]
[1750639527552,0.03327912,101430.0,101410.0,0.31940001]
[1750639527991,0.03327912,101430.0,101410.0,0.38364001]
[1750639527992,0.0012,101430.0,101410.0,0.38364001]
[1750639528206,0.0012,101430.0,101410.0,0.37463122]
[1750639528422,0.0012,101430.0,101410.0,0.08534001]
[1750639528642,0.0012,101430.0,101410.0,0.05220001]
[1750639529134,0.0012,101430.0,101410.0,0.34149122]
[1750639529353,0.0012,101430.0,101410.0,0.42558434]
[1750639530266,0.05224,101440.0,101420.0,0.37339122]
[1750639530484,0.05344,101440.0,101420.0,0.37463122]
[1750639530734,0.05344,101440.0,101420.0,0.08534001]
[1750639530964,0.05344,101440.0,101420.0,0.05220001]
[1750639531671,0.05544,101440.0,101420.0,0.05220001]
[1750639532804,0.05544,101440.0,101420.0,0.37373122]
[1750639533022,0.002,101440.0,101420.0,0.37373122]
[1750639533476,0.002,101440.0,101430.0,0.37283122]
[1750639533971,0.002,101440.0,101430.0,0.54051122]
[1750639534425,0.00013868,101450.0,101430.0,0.56426234]
[1750639534658,0.00013868,101450.0,101430.0,0.54151122]
[1750639534882,0.00013868,101450.0,101440.0,0.05140001]
[1750639535110,0.00013868,101450.0,101440.0,0.08354001]
[1750639536512,0.00013868,101450.0,101440.0,0.37283122]
[1750639537189,0.00013868,101450.0,101440.0,0.08354001]
[1750639538119,0.00013868,101450.0,101440.0,0.05140001]
[1750639539896,0.00013868,101450.0,101440.0,0.02110001]
[1750639540122,0.00133868,101450.0,101430.0,0.02110001]
[1750639540625,0.00133868,101450.0,101430.0,0.08664001]
[1750639540851,0.00013868,101450.0,101430.0,0.13786513]
[1750639541133,0.00013868,101450.0,101440.0,0.06554]
[1750639541368,0.00013868,101450.0,101440.0,0.0312]
[1750639541611,0.00013868,101450.0,101430.0,0.42449591]
[1750639541832,0.00133868,101450.0,101430.0,0.1664047]
[1750639542123,0.29062989,101450.0,101430.0,0.05230001]
[1750639542383,0.31969288,101450.0,101430.0,0.05230001]
[1750639542824,0.29062989,101450.0,101430.0,0.05230001]
[1750639543259,0.29062989,101450.0,101430.0,0.08660001]
[1750639543700,0.29062989,101450.0,101430.0,0.05230001]
[1750639543925,0.29062989,101450.0,101430.0,0.08580001]
[1750639544164,0.00133868,101450.0,101430.0,0.37509122]
[1750639545057,0.00133868,101450.0,101440.0,0.0652]
[1750639545058,0.00013868,101450.0,101440.0,0.0652]
[1750639545525,0.00013868,101450.0,101440.0,0.0312]
[1750639547154,0.00013868,101450.0,101440.0,0.063]
[1750639547829,0.00013868,101450.0,101440.0,0.08410001]
[1750639548079,0.00013868,101450.0,101440.0,0.08530001]
[1750639549187,0.00013868,101450.0,101440.0,0.05230001]
[1750639549648,0.28942989,101450.0,101430.0,0.08440001]
[1750639549873,0.00013868,101450.0,101430.0,0.37489122]
[1750639550098,0.00013868,101450.0,101440.0,0.0331]
[1750639550347,0.00013868,101450.0,101440.0,0.0647]
[1750639550559,0.00013868,101450.0,101440.0,0.0659]
[1750639551929,0.00013868,101450.0,101440.0,0.0331]
[1750639552360,0.00013868,101450.0,101440.0,0.0669]
[1750639553883,0.00013868,101450.0,101440.0,0.45705591]
[1750639554103,0.00013868,101450.0,101440.0,0.66182503]
[1750639556106,0.00013868,101450.0,101440.0,0.66482503]
[1750639556973,0.00013868,101450.0,101440.0,0.1707647]
[1750639557192,0.00013868,101450.0,101440.0,0.25772001]
[1750639557643,0.00013868,101450.0,101440.0,0.08980001]
[1750639557871,0.29057989,101450.0,101440.0,0.003]
[1750639558348,0.33943785,101450.0,101440.0,0.003]
[1750639558579,0.01859664,101450.0,101440.0,0.003]
[1750639558794,0.00128868,101450.0,101430.0,0.37419122]
[1750639559018,0.00013868,101450.0,101430.0,0.08490001]
[1750639559244,0.00013868,101450.0,101440.0,0.003]
[1750639559469,0.29057989,101450.0,101440.0,0.003]
[1750639559716,0.29057989,101450.0,101430.0,0.08490001]
[1750639559903,0.00128868,101450.0,101430.0,0.08490001]
[1750639560788,0.00128868,101450.0,101440.0,0.0326]
[1750639560789,0.00013868,101450.0,101440.0,0.0326]
[1750639562129,0.00013868,101450.0,101440.0,0.08710001]
[1750639563663,0.00013868,101450.0,101440.0,0.37639122]
[1750639563664,4.94e-05,101450.0,101440.0,0.37639122]
[1750639564330,4.94e-05,101450.0,101440.0,0.08710001]
[1750639564546,4.94e-05,101450.0,101440.0,0.08956419]
[1750639564767,4.94e-05,101450.0,101440.0,0.1354262]
[1750639564994,4.94e-05,101450.0,101440.0,0.08956419]
[1750639566836,4.94e-05,101450.0,101440.0,0.3788554]
[1750639567070,4.94e-05,101450.0,101440.0,0.37639122]
[1750639567789,4.94e-05,101450.0,101440.0,0.0648]
[1750639567986,4.94e-05,101450.0,101440.0,0.05370001]
[1750639568651,0.29049061,101450.0,101430.0,0.02110001]
[1750639568891,0.29044121,101440.0,101430.0,0.02110001]
[1750639569133,0.29049061,101450.0,101430.0,0.02110001]
[1750639569360,0.30897085,101450.0,101430.0,0.05370001]
[1750639569812,0.30896855,101450.0,101430.0,0.05370001]
[1750639570032,0.30896855,101450.0,101430.0,0.08650001]
[1750639570265,0.01967734,101450.0,101430.0,0.08650001]
[1750639570494,4.94e-05,101450.0,101440.0,0.08770001]
[1750639571302,4.94e-05,101450.0,101440.0,0.37945557]
[1750639571547,4.94e-05,101450.0,101440.0,0.37699122]
[1750639572478,4.94e-05,101450.0,101440.0,0.08770001]
[1750639572702,4.94e-05,101450.0,101440.0,0.0901642]
[1750639573368,4.94e-05,101450.0,101440.0,0.16149464]
[1750639574059,4.94e-05,101450.0,101440.0,0.0901642]
[1750639574307,4.94e-05,101450.0,101440.0,0.45146807]
[1750639574583,4.94e-05,101450.0,101440.0,0.44900388]
[1750639574874,4.94e-05,101450.0,101440.0,0.61796388]
[1750639577368,4.94e-05,101450.0,101440.0,0.08770001]
[1750639577579,4.94e-05,101450.0,101440.0,0.44900388]
[1750639577805,4.94e-05,101450.0,101440.0,0.54061427]
[1750639578345,4.94e-05,101450.0,101440.0,0.83891427]
[1750639581885,4.94e-05,101450.0,101440.0,0.83642963]
[1750639582524,4.94e-05,101450.0,101440.0,0.47512576]
[1750639582749,4.94e-05,101450.0,101440.0,0.08521537]
[1750639582979,4.94e-05,101450.0,101440.0,0.25385537]
[1750639584526,4.94e-05,101450.0,101430.0,0.05240001]
[1750639584742,0.0012794,101450.0,101430.0,0.22092001]
[1750639584970,0.0012794,101450.0,101440.0,0.02110001]
[1750639585183,4.94e-05,101450.0,101440.0,0.02110001]
[1750639586695,4.94e-05,101450.0,101440.0,0.05140001]
[1750639587792,4.94e-05,101450.0,101440.0,0.02110001]
[1750639590201,4.94e-05,101450.0,101440.0,0.05350001]
[1750639591556,4.94e-05,101450.0,101440.0,0.02110001]
[1750639591778,0.39298327,101450.0,101430.0,0.02110001]
[1750639591992,0.39298327,101450.0,101440.0,0.02110001]
[1750639592239,0.0012794,101450.0,101440.0,0.02110001]
[1750639592459,4.94e-05,101450.0,101440.0,0.37542458]
[1750639592683,4.94e-05,101450.0,101440.0,0.54460458]
[1750639592904,4.94e-05,101450.0,101440.0,0.25548001]
[1750639593126,4.94e-05,101450.0,101440.0,0.54460458]
[1750639593563,4.94e-05,101450.0,101440.0,0.57077733]
[1750639593779,4.94e-05,101450.0,101440.0,0.54460458]
[1750639595875,4.94e-05,101450.0,101440.0,0.84290458]
[1750639596363,4.94e-05,101450.0,101440.0,0.91501164]
[1750639597316,4.94e-05,101450.0,101440.0,0.55378001]
[1750639597538,4.94e-05,101450.0,101440.0,0.91501164]
[1750639598481,4.94e-05,101450.0,101440.0,1.01448927]
[1750639599143,4.94e-05,101450.0,101440.0,0.91501164]
[1750639601017,4.94e-05,101450.0,101440.0,0.93206264]
[1750639605123,4.94e-05,101450.0,101440.0,0.57083101]
[1750639605353,4.94e-05,101450.0,101440.0,0.93206264]
[1750639606516,4.94e-05,101450.0,101440.0,0.93006264]
[1750639606739,4.94e-05,101450.0,101440.0,1.0250689]
[1750639606965,0.0020494,101450.0,101440.0,1.0460689]
[1750639607441,0.0020494,101450.0,101440.0,0.95306264]
[1750639607655,0.0020494,101450.0,101440.0,0.78502264]
[1750639607867,0.0020494,101450.0,101440.0,0.95258264]
[1750639608334,0.0020494,101450.0,101440.0,0.78502264]
[1750639608555,0.0020494,101450.0,101440.0,0.57316001]
[1750639608778,0.0020494,101450.0,101440.0,1.12933019]
[1750639609634,0.0020494,101450.0,101440.0,1.03589103]
[1750639610510,0.05112,101480.0,101450.0,0.0618]
[1750639610721,0.06958499,101480.0,101450.0,0.3613]
[1750639612018,0.06958499,101480.0,101460.0,0.01910001]
[1750639612237,0.43081662,101480.0,101460.0,0.05702001]
[1750639612449,0.00115,101470.0,101460.0,0.05702001]
[1750639613127,0.00119621,101470.0,101460.0,0.05702001]
[1750639613562,0.00219621,101470.0,101460.0,0.07002001]
[1750639616599,0.00219621,101470.0,101460.0,0.03210001]
[1750639617208,0.00104621,101470.0,101460.0,0.03210001]
[1750639619055,0.00104621,101470.0,101460.0,0.09470001]
[1750639620972,0.00104621,101470.0,101460.0,0.09590001]
[1750639621194,0.00104621,101470.0,101460.0,0.38489171]
[1750639621414,0.00104621,101470.0,101460.0,0.45321088]
[1750639622327,0.00104621,101470.0,101460.0,0.39692386]
[1750639622546,0.00104621,101470.0,101460.0,0.6316964]
[1750639622798,0.00104621,101470.0,101460.0,0.4646564]
[1750639623238,0.00104621,101470.0,101460.0,0.74653664]
[1750639623431,4.621e-05,101470.0,101460.0,1.01752834]
[1750639623680,0.00204621,101470.0,101460.0,1.14282773]
[1750639625220,0.00204621,101470.0,101460.0,1.14582773]
[1750639625443,0.00204621,101470.0,101460.0,1.34370834]
[1750639625881,0.00204621,101470.0,101460.0,1.39494834]
[1750639626565,0.00204621,101470.0,101460.0,1.73494834]
[1750639626810,0.20555,101500.0,101490.0,0.0671]
[1750639627022,0.20601214,101500.0,101490.0,0.53121579]
[1750639627240,0.20601214,101500.0,101490.0,0.5453158]
[1750639627675,0.20601214,101500.0,101490.0,0.5749468]
[1750639628762,0.20601214,101500.0,101490.0,0.27767101]
[1750639628954,0.20601214,101500.0,101490.0,0.17084]
[1750639629202,0.20601214,101500.0,101490.0,0.004]
[1750639629420,0.52618603,101500.0,101490.0,0.002]
[1750639629643,0.52618603,101500.0,101490.0,0.006]
[1750639629870,0.53388603,101500.0,101490.0,0.006]
[1750639630093,0.26333811,101500.0,101490.0,0.006]
[1750639630546,0.56155187,101500.0,101490.0,0.006]
[1750639630995,0.56155187,101500.0,101490.0,0.002]
[1750639631212,0.38432941,101500.0,101490.0,0.004]
[1750639631436,0.38432941,101500.0,101490.0,0.002]
[1750639631691,0.43544941,101500.0,101490.0,0.005]
[1750639631955,0.0077,101490.0,101460.0,0.4246647]
[1750639632167,0.2901417,101480.0,101460.0,0.1263647]
[1750639632864,0.00115,101480.0,101460.0,0.4489564]
[1750639633086,0.4570217,101490.0,101470.0,0.07800001]
[1750639633309,0.30858966,101490.0,101470.0,0.07800001]
[1750639633528,0.3597093,101490.0,101470.0,0.07800001]
[1750639633749,0.3412617,101490.0,101470.0,0.07800001]
[1750639633973,0.05227,101490.0,101470.0,0.07924001]
[1750639634198,0.3412617,101490.0,101470.0,0.12391565]
[1750639634412,0.05227,101490.0,101470.0,0.07924001]
[1750639634626,0.3412617,101490.0,101470.0,0.07924001]
[1750639635061,0.2889917,101490.0,101470.0,0.08100001]
[1750639635291,0.05882187,101500.0,101480.0,0.1567047]
[1750639635509,0.07726596,101500.0,101480.0,0.1567047]
[1750639635725,0.07726596,101500.0,101480.0,0.13849365]
[1750639635961,0.36625766,101500.0,101480.0,0.07694001]
[1750639636172,0.05882187,101500.0,101480.0,0.1567047]
[1750639637688,0.05882187,101500.0,101480.0,0.1577047]
[1750639638806,0.05882187,101500.0,101490.0,0.01410001]
[1750639639025,0.05882187,101500.0,101490.0,0.07880001]
[1750639640982,0.05882187,101500.0,101490.0,0.07980001]
[1750639642902,0.08992686,101500.0,101490.0,0.01510001]
[1750639643139,0.05882187,101500.0,101490.0,0.01510001]
[1750639643355,0.05882187,101500.0,101490.0,0.07900001]
[1750639644005,0.05882187,101500.0,101490.0,0.08024001]
[1750639644710,0.05882187,101500.0,101490.0,0.07900001]
[1750639644932,0.05882187,101500.0,101490.0,0.01510001]
[1750639645371,0.05995187,101500.0,101490.0,0.01510001]
[1750639646454,0.42103288,101500.0,101490.0,0.001]
[1750639646666,0.05995187,101500.0,101490.0,0.001]
[1750639647102,0.05882187,101500.0,101490.0,0.065]
[1750639648266,0.05882187,101500.0,101490.0,0.07910001]
[1750639648324,0.05882187,101500.0,101490.0,0.08034001]
[1750639648529,0.05882187,101500.0,101490.0,0.12605648]
[1750639650240,0.05882187,101500.0,101490.0,0.08034001]
[1750639651223,0.02878968,101500.0,101490.0,0.38110315]
[1750639651444,0.02878968,101500.0,101490.0,0.37864001]
[1750639653736,0.02878968,101500.0,101490.0,0.54480001]
[1750639653964,0.02878968,101500.0,101490.0,0.5307]
[1750639654201,0.02878968,101500.0,101490.0,0.36454]
[1750639654439,0.02878968,101500.0,101490.0,0.54480001]
[1750639654672,0.02878968,101500.0,101490.0,0.37864001]
[1750639656536,0.14296803,101530.0,101490.0,0.54464001]
[1750639656770,0.36108101,101520.0,101500.0,0.0627]
[1750639656991,0.39571147,101520.0,101500.0,0.0627]
[1750639658357,0.3234346,101520.0,101500.0,0.0627]
[1750639658581,0.35243737,101520.0,101500.0,0.0627]
[1750639658804,0.06363323,101520.0,101500.0,0.0627]
[1750639659015,0.28880414,101510.0,101500.0,0.04470001]
[1750639659237,0.30718447,101510.0,101500.0,0.04470001]
[1750639659470,0.30727372,101510.0,101500.0,0.04470001]
[1750639659924,0.30727372,101510.0,101500.0,0.07680001]
[1750639659925,0.31650715,101510.0,101500.0,0.07680001]
[1750639660408,0.30727372,101510.0,101500.0,0.07680001]
[1750639661085,0.06133013,101510.0,101500.0,0.07680001]
[1750639661306,0.31650662,101510.0,101500.0,0.07680001]
[1750639662244,0.31650426,101510.0,101500.0,0.07680001]
[1750639662686,0.28880414,101510.0,101500.0,0.07680001]
[1750639662966,0.02770009,101510.0,101500.0,0.1565647]
[1750639663215,0.01846673,101510.0,101500.0,0.1565647]
[1750639663425,0.02770651,101510.0,101500.0,0.1565647]
[1750639664362,0.02770651,101510.0,101500.0,0.1578047]
[1750639664818,0.02770651,101510.0,101500.0,0.23105558]
[1750639665059,0.02770651,101510.0,101500.0,0.81939972]
[1750639665060,0.01846673,101510.0,101500.0,0.81939972]
[1750639665266,0.02900277,101520.0,101510.0,0.07734001]
[1750639665490,0.05671672,101520.0,101510.0,0.07734001]